{"text_format":"3","workbook":"xlsx","n_sheets":2,"sheets":["Netw perf monitoring","Currency"],"not_rendered":{"external_links":7,"defined_names":301},"read":"whole","date_system":"1900"}

{"sheet":"Netw perf monitoring","index":0,"n_rows":55,"n_cols":58,"rows_kept":55,"merged":[[2,1,2,5],[22,4,22,6],[22,7,22,11],[22,12,22,16],[22,17,22,21],[22,22,22,26],[22,27,22,31],[23,4,23,6],[38,2,38,6],[39,1,39,6],[40,2,40,6],[41,2,41,6],[42,2,42,6],[43,2,43,6],[44,2,44,6],[46,1,46,6],[47,2,47,6],[48,2,48,6],[49,2,49,6],[51,2,51,6],[53,1,53,6],[54,2,54,6]]}
[null,"Pricing Schedule : Network Performance Monitoring"]
[]
[null,"VENDOR NAME"]
[]
[]
[]
[null,"IMPORTANT NOTES"]
[null,"All cells highlighted in GREEN must be completed"]
[null,"Quoted prices MUST be in ZAR, EXCLUDING VAT and ESCALATIONS"]
[]
[null,"Network Performance Monitoring - Adding of Smart Nodes to existing TAP Aggregation devices"]
[null,"Prices MUST be quoted based on the SCOPE provided"]
[null,"Estimated quantities are based on the required number of hours"]
[null,"Select the currency from the CURRENCY drop-down list in COLUMN \"F\""]
[]
[null,"Capture the applicable Currency, ROE and ROE Published Date on the \"Currency sheet\". "]
[null,"The adjustments for prevailing rates and the basis for future price adjustments will be determined at time of contracting. "]
[null,"Exchange rate variations may not be claimed for the local mark-up in the pricing structure"]
[]
[null,"All Prices must be exclusive of VAT"]
[]
[]
[null," ",{"$nulls":5},"YEAR 1",{"$nulls":4},"YEAR 2",{"$nulls":4},"YEAR 3",{"$nulls":4},"YEAR 4",{"$nulls":4},"YEAR 5"]
["Item Number","Category","Description","Unit charge","CURRENCY",null,null,"Estimated Quantities","Unit Price in Nominated Currency","Unit Price in ZAR","Total [Nominated Currency]","Total in ZAR","Estimated Quantities","Unit Price in Nominated Currency","Unit Price in ZAR","Total [Nominated Currency]","Total in ZAR","Estimated Quantities","Unit Price in Nominated Currency","Unit Price in ZAR","Total [Nominated Currency]","Total in ZAR","Estimated Quantities","Unit Price in Nominated Currency","Unit Price in ZAR","Total [Nominated Currency]","Total in ZAR","Estimated Quantities","Unit Price in Nominated Currency","Unit Price in ZAR","Total [Nominated Currency]","Total in ZAR"]
[1.1,"Purchase new Equipment ","Service Node","Per Device",{"$f":"IF(F25=\"\",\"\",IF(F25=\"ZAR\",\"Local\",\"Foreign\"))","v":"Foreign"},"USD",{"$f":"Currency!$E$18","v":0},1,null,{"$f":"I25*$G25","v":0},{"$f":"I25*$H25","v":0},{"$f":"J25*$H25","v":0},0,null,{"$f":"N25*$G25","v":0},{"$f":"N25*$H25","v":0},{"$f":"O25*$H25","v":0},0,null,{"$f":"S25*$G25","v":0},{"$f":"S25*$R25","v":0},{"$f":"T25*$R25","v":0},0,null,{"$f":"X25*$G25","v":0},{"$f":"X25*$W25","v":0},{"$f":"Y25*$W25","v":0},0,null,{"$f":"AC25*$G25","v":0},{"$f":"AC25*$R25","v":0},{"$f":"AD25*$R25","v":0},{"$nulls":25},"AUD"]
[1.2,null,"Recorder Node","Per Device","Foreign","USD",{"$f":"Currency!$E$18","v":0},1,null,0,{"$f":"I26*$H26","v":0},{"$f":"J26*$H26","v":0},0,null,{"$f":"N26*$G26","v":0},{"$f":"N26*$H26","v":0},{"$f":"O26*$H26","v":0},0,null,{"$f":"S26*$G26","v":0},{"$f":"S26*$R26","v":0},{"$f":"T26*$R26","v":0},0,null,{"$f":"X26*$G26","v":0},{"$f":"X26*$W26","v":0},{"$f":"Y26*$W26","v":0},0,null,{"$f":"AC26*$G26","v":0},{"$f":"AC26*$R26","v":0},{"$f":"AD26*$R26","v":0},{"$nulls":25},"AUD"]
[1.3,null,"Analytics Node","Per Device","Foreign","USD",{"$f":"Currency!$E$18","v":0},1,null,0,{"$f":"I27*$H27","v":0},{"$f":"J27*$H27","v":0},0,{"$nulls":4},0,{"$nulls":4},0,{"$nulls":4},0]
[1.4,null,"10GbaseCopper with SFP+","Once Off","Foreign","USD",{"$f":"Currency!$E$18","v":0},6,null,0,{"$f":"I28*$H28","v":0},0,0]
[1.5,null,"25Gbe SFP 25","Once Off","Foreign","USD",{"$f":"Currency!$E$18","v":0},2,null,0,{"$f":"I29*$H29","v":0},0,0]
[2.1,"Support and Maintenance","Service Node Hardware and software Support (1 Jan 2024 to 31 Jan 2029)","Yearly","Foreign","USD",{"$f":"Currency!$E$18","v":0},12,null,0,0,0,12,{"$f":"I30","v":0},{"$f":"N30*$G30","v":0},{"$f":"N30*$H30","v":0},0,12,{"$f":"N30","v":0},{"$f":"S30*$G30","v":0},{"$f":"S30*$R30","v":0},{"$f":"T30*$H30","v":0},12,{"$f":"S30","v":0},{"$f":"X30*$G30","v":0},{"$f":"X30*$W30","v":0},0,12,{"$f":"X30","v":0},{"$f":"AC30*$G30","v":0},{"$f":"AC30*$R30","v":0},0,{"$nulls":25},"AUD"]
[2.2,null,"Recorder Node Hardware and software Support (1 Jan 2024 to 31 Jan 2029)","Yearly","Foreign","USD",{"$f":"Currency!$E$18","v":0},12,null,{"$f":"I31*$G31","v":0},{"$f":"I31*$H31","v":0},0,12,{"$f":"I31","v":0},{"$f":"N31*$G31","v":0},{"$f":"N31*$H31","v":0},0,12,{"$f":"N31","v":0},{"$f":"S31*$G31","v":0},{"$f":"S31*$H31","v":0},0,12,{"$f":"S31","v":0},{"$f":"X31*$G31","v":0},0,0,12,{"$f":"X31","v":0},{"$f":"AC31*$G31","v":0},0,0,{"$nulls":25},"AUD"]
[2.3,null,"Analytics Node  Hardware and software Support(1 Jan 2024 to 31 Jan 2029)","Yearly","Foreign","USD",{"$f":"Currency!$E$18","v":0},12,null,{"$f":"I32*$G32","v":0},0,0,12,0,{"$f":"N32*$G32","v":0},0,0,12,{"$f":"N32","v":0},0,{"$f":"S32*$H32","v":0},0,12,0,{"$f":"X32*$G32","v":0},0,0,12,0,{"$f":"AC32*$G32","v":0},0,0]
[3,"Professional Service","Deployment of new equipment","Hourly rate","Local","ZAR",{"v":1,"d":"1.00"},40,null,{"$f":"I33*$G33","v":0},0,0,0]
[4,"Training","Access to remote training to enable staff to manage and operate new equipment that is purchased ","Yearly",{"$f":"IF(F34=\"\",\"\",IF(F34=\"ZAR\",\"Local\",\"Foreign\"))","v":"Local"},"ZAR",{"v":1,"d":"1.00"},1,null,{"$f":"I34*$G34","v":0},{"$f":"I34*$H34","v":0},{"$f":"J34*$H34","v":0},1,{"$f":"I34","v":0},{"$f":"N34*$G34","v":0},{"$f":"N34*$H34","v":0},{"$f":"O34*$H34","v":0},1,{"$f":"N34","v":0},{"$f":"S34*$G34","v":0},{"$f":"S34*$R34","v":0},{"$f":"T34*$R34","v":0},1,{"$f":"S34","v":0},{"$f":"X34*$G34","v":0},{"$f":"X34*$W34","v":0},{"$f":"Y34*$W34","v":0},1,{"$f":"X34","v":0},{"$f":"AC34*$G34","v":0},{"$f":"AC34*$R34","v":0},{"$f":"AD34*$R34","v":0}]
[null,"Total ",{"$nulls":9},{"$f":"SUM(L25:L34)","v":0},{"$nulls":4},{"$f":"SUM(Q30:Q34)","v":0},{"$nulls":4},{"$f":"SUM(V30:V34)","v":0},{"$nulls":4},{"$f":"SUM(AA30:AA34)","v":0},{"$nulls":4},{"$f":"SUM(AF30:AF34)","v":0}]
[]
[null,"GRAND TOTAL",{"$nulls":9},{"$f":"SUM(L35,Q35,V35,AA35,AF35)","v":0}]
[]
["Service Number","Service","Description"]
[1,"Purchase new Equipment \nPurchase new equipment with all software and license requirements to meet fuctionality as per scope."]
[1.1,"New Hardware - Service Node","1xService Node - Performance - System should be capable of offering any of the required services offered at line rate. Should have 4 x 10G interfaces"]
[1.2,"New Hardware - Recorder Node","1xRecorder Node - Feature - Must be easy to scale out, for example if the initial 192TB of storage is not enough - another node can be connected to the fabric, doubling the storage. This needs to be transparent to the user.\nIntegrated / centralized configuration and operational workflows via DMF Controller\nMust be easy to scale out, for example if the initial 192TB of storage is not enough - another node can be connected to the fabric, doubling the storage. This needs to be transparent to the user.\nMust have Feature-rich capturing, querying and replay functions\nMust support PTP / NTP based timestamping\nMust have a 25Gbps interface for recording traffic flows that connects to the fabric\nMust support 192TB of storage\nMust be programmable and scriptable via REST APIs\n"]
[1.3,"New Hardware - Analytics Node","1xAnalytics Node - Feature - System should be able to handle:\nARP 20,000 pkts/sec\nDHCP 15,000 pkts/sec\nICMP 15,000 pkts/sec\nDNS1 8,000 pkts/sec\nTCPFlow 6,000 flows/sec\nsFLOW 12,000 flows/sec\nIPFIX 12,000 flows/sec\nNetflow ver 5 100,000 flows/sec\n"]
[1.4,"New Hardware - 10GBASE-CR twinax copper cable with SFP+","Six (6) x 10GBASE-CR twinax copper cable with SFP+ connectors on both ends (2m)"]
[1.5,"New Hardware - 25GbE SFP25 to SFP25 twinax copper cable","Two (2) x 25GbE SFP25 to SFP25 twinax copper cable, 2M"]
[]
[2,"Hardware and Software Support - Period (1 Jan 2024 to 31 Jan 2029), 5 Years\n1 Month A-Care Software & NBD Hardware Replacement/Same Day Ship for Service Node HWC support"]
[2.1,"Support and Maintenance - Service Node","Service Node Hardware and software Support (1 Jan 2024 to 31 Jan 2029) 1 Month A-Care Software & NBD Hardware Replacement/Same Day Ship for Service Node HWC support"]
[2.2,"Support and Maintenance - Recorder Node","Recorder Node Node Hardware and software Support (1 Jan 2024 to 31 Jan 2029) 1 Month A-Care Software & NBD Hardware Replacement/Same Day Ship for Service Node HWC support"]
[2.3,"Support and Maintenance - Analatics Node","Analytics Node Hardware and software Support (1 Jan 2024 to 31 Jan 2029) 1 Month A-Care Software & NBD Hardware Replacement/Same Day Ship for Service Node HWC support"]
[]
[3,"Professional Service ","Deployment of new equipment after hours in Megawatt Park"]
[null,null,"  "]
[4,"Training\nAccess to Online/Remote training to book classes to train up to 5 Eskom Staff\n"]
[4,"Online/remote","Training can be pre-recorded or live.   \nTraining  to be booked according to Eskom staff availabilty\nOEM online training for 5-day training for five (5) Eskom staff personal on the proposed solution. (Monitoring specialist training – expert level)\n"]

{"sheet":"Currency","index":1,"n_rows":19,"n_cols":7,"rows_kept":19,"merged":[[3,1,3,6]]}
[]
[]
[]
[null,"MULTIPLE CURRENCIES"]
[null,"No","Currency Description","Code","Exchange Rate Currency 1,00 =","Date Published","Source"]
[null,1,"Australian Dollar","AUD"]
[null,2,"Canadian Dollar","CAN"]
[null,3,"Swiss Franc","CHF"]
[null,4,"Danish Krone","DKK"]
[null,5,"European Currency","EUR"]
[null,6,"British Pound","GBP"]
[null,7,"Hong Kong Dollar","HKD"]
[null,8,"Japanese Yen","JPY"]
[null,9,"Norwegian Krone","NOK"]
[null,10,"New Zealand Dollar","NZD"]
[null,11,"Swedish Krone","SEK"]
[null,12,"Singapore Dollar","SGD"]
[null,13,"United States Dollar","USD"]
[null,14,"South African Rand","ZAR",{"v":1,"d":"R 1.000000"}]